Cogmind - Beta 16 @@@ ROGUE MODE // 2025.10.23 @ 20:38:24 Player: BLINGO GOVLIN Result: Destroyed by G-47 Trooper with Particle Gun Performance ------------- Evolutions (1) 500 Regions Visited (4) 800 Robots Destroyed (42) 210 Value Destroyed (1211) 1211 Prototype IDs (4) 80 Alien Tech Used (0) 0 Bonus (0) 0 TOTAL SCORE: 2801 Bonus ------- None Cogmind --------- Core Integrity 0/400 Matter 270/300 Energy 95/125 System Corruption 3% Temperature Cool (41) Movement Treading (160) Location -9/Mines Parts ------- > --- POWER (1) -------- Light Ion Engine > --- PROPULSION (2) --- Improved Treads > --- UTILITY (4) ------ Medium Storage Unit Visual Processing Unit Power Shielding > --- WEAPON (2) ------- Light Assault Rifle Heavy Assault Rifle > --- INVENTORY (10) --- Light Treads Flight Unit Flight Unit VTOL Module Small Laser Mini Grenade Launcher Peak State ------------ > --- POWER ------------ Light Nuclear Core > --- PROPULSION ------- Light Treads > --- UTILITY ---------- Medium Storage Unit Visual Processing Unit Power Shielding Hardened Light Armor Plating > --- WEAPON ----------- Light Assault Rifle Mace > --- INVENTORY -------- Light Ion Engine Light Treads Flight Unit Flight Unit VTOL Module Small Laser Small Laser Mini Grenade Launcher [Rating: 14] Favorites ----------- Power Ion Engine Engine Ion Engine Power Core Light Nuclear Core Propulsion Light Treads Treads Light Treads Leg Aluminum Leg Flight Unit Flight Unit Utility Medium Storage Unit Device Heat Sink Storage Medium Storage Unit Processor Visual Processing Unit Protection Hardened Light Armor Plating Weapon Light Assault Rifle Energy Gun Small Laser Ballistic Gun Light Assault Rifle Impact Weapon Hammer Build | -11 -10 -10 -9 -9 ------- Run | Yrd Mat Min Mat Min Slots Evolved 2 | . . . 2 . Power . | . . . . . Propulsion . | . . . . . Utility 2 | . . . 2 . Weapon . | . . . . . Parts Attached 30 | 6 6 . 17 1 Power 4 | 1 . . 3 . Engine 3 | 1 . . 2 . Core 1 | . . . 1 . Reactor . | . . . . . Propulsion 10 | 2 2 . 6 . Treads 7 | 2 . . 5 . Leg 2 | . 2 . . . Wheel . | . . . . . Hover . | . . . . . Flight 1 | . . . 1 . Utility 8 | 1 2 . 5 . Device 2 | . 1 . 1 . Storage 2 | 1 1 . . . Processor 1 | . . . 1 . Hackware . | . . . . . Protection 3 | . . . 3 . Artifact . | . . . . . Weapon 8 | 2 2 . 3 1 Energy Gun 3 | 1 1 . 1 . Energy Cannon . | . . . . . Ballistic Gun 3 | 1 . . 1 1 Ballistic Cannon . | . . . . . Launcher . | . . . . . Special Weapon . | . . . . . Impact Weapon 2 | . 1 . 1 . Slashing Weapon . | . . . . . Piercing Weapon . | . . . . . Special Melee Weapon . | . . . . . Unidentified Prototypes . | . . . . . Corrupted Parts 1 | . . . 1 . System Corruption 3 | . . . 3 . Parts Lost 19 | . 1 . 16 2 Power 3 | . . . 3 . Propulsion 7 | . 1 . 5 1 Utility 4 | . . . 4 . Weapon 5 | . . . 4 1 Highest Loss Streak 3 | . 1 . 3 2 To Critical Strikes . | . . . . . Average Backups 7 | 1 6 9 8 6 Power 1 | . 1 2 1 . Propulsion 2 | . 2 2 2 4 Utility 1 | . . 2 . . Weapon 2 | . 1 3 3 2 Tool/Special . | . . . . . Unused Backups 3 | . . . . 3 Power . | . . . . . Propulsion 2 | . . . . 2 Utility . | . . . . . Weapon 1 | . . . . 1 Tool/Special . | . . . . . Average Slot Usage (%) 91 | . 96 100 85 77 Engine 11 | . 14 14 7 11 Core 1 | . . . 3 . Treads 17 | . 25 . 13 13 Leg 5 | . 2 28 4 . Device 10 | . 10 14 9 . Storage 12 | . 14 14 11 11 Processor 2 | . . . 5 11 Protection 4 | . . . 9 11 Energy Gun 8 | . 11 14 3 4 Ballistic Gun 9 | . 14 14 3 15 Impact Weapon 6 | . 2 . 12 . Peak Build Rating 14 | 6 8 7 14 11 Average Rating 8 | 3 6 7 10 9 On Entrance 6 | . 6 7 7 11 Avg Prop Armor Cover (%) 3 | . . . 3 . Naked Turns . | . . . . . Heaviest Build 25 | 12 19 18 25 16 Greatest Support 43 | 40 40 20 43 43 Greatest Overweight (x) 2 | . . . 2 . Average Overweight (x) . | . . . . . Largest Inventory Capacity 10 | 8 10 10 10 10 Average Capacity 9 | 6 8 10 10 10 Most Carried 10 | 5 10 9 10 7 Average Carried 7 | 2 6 9 8 6 Final Capacity 10 | 8 10 10 10 10 Final Carried 9 | 3 9 9 7 6 Class Distribution -------------------- 93% | Mutant 6% | Scavenger-Mutant Dominant Class ---------------- Mutant | -10/Materials Mutant | -10/Mines Mutant | -9/Materials Mutant | -9/Mines Resources | -11 -10 -10 -9 -9 ----------- Run | Yrd Mat Min Mat Min Matter Collected 586 | 225 135 . 226 . Remotely . | . . . . . Salvage Created 1634 | . 451 . 1183 . Parts 57 | . 21 . 36 . Haulers Intercepted 5 | . 1 . 4 . Recyclers Shooed . | . . . . . Parts Field Recycled . | . . . . . Retrieved Matter . | . . . . . Parts Self-Destructed . | . . . . . Prevented . | . . . . . Parts Restored . | . . . . . Kills | -11 -10 -10 -9 -9 ------- Run | Yrd Mat Min Mat Min Combat Hostiles Destroyed 31 | . 9 . 22 . Melee 11 | . 2 . 9 . Guns 7 | . 6 . 1 . Classes Destroyed 10 | . 5 . 5 . Worker 1 | . 1 . . . Hauler 5 | . 1 . 4 . Recycler 1 | . . . 1 . Mechanic 1 | . . . 1 . Operator 1 | . 1 . . . Watcher 2 | . 1 . 1 . Swarmer 3 | . . . 3 . Grunt 18 | . 9 . 9 . Duelist 1 | . . . 1 . Sentry 9 | . . . 9 . Best Kill Streak 4 | . 3 . 4 . Combat Bots Only 4 | . 3 . 4 . Max Kills in Single Turn 1 | . 1 . 1 . Gunslinging . | . . . . . Exploded . | . . . . . Melee 1 | . 1 . 1 . Uniques/NPCs Destroyed . | . . . . . Combat | -11 -10 -10 -9 -9 -------- Run | Yrd Mat Min Mat Min Hostile Shots Fired 274 | . 61 6 187 20 Missed 60 | . 16 3 38 3 Hits 214 | . 45 3 149 17 Melee 4 | . . . 4 . Projectile 210 | . 45 3 145 17 Critical Strikes 5 | . . . 2 3 Damage Taken 2804 | . 556 24 1991 233 Core 516 | . 114 . 312 90 Absorbed by Shields . | . . . . . Redirected to Shielding 22 | . . . 19 3 Core Remaining (%) 77 | 100 . 54 . . Volleys Fired 59 | . 45 . 9 5 Largest 2 | . 2 . 2 2 Hottest 60 | . 60 . 60 43 Shots Fired 116 | . 88 . 18 10 Gun 116 | . 88 . 18 10 Cannon . | . . . . . Launcher . | . . . . . Special . | . . . . . Kinetic 65 | . 45 . 10 10 Thermal 51 | . 43 . 8 . Explosive . | . . . . . Electromagnetic . | . . . . . Robot Hit Streak 12 | . 12 . 5 12 Robot Miss Streak 3 | . 3 . 2 2 Penetration Max . | . . . . . Secondary Targets . | . . . . . Shots Hit Robots 160 | . 65 . 87 8 Core Hits 40 | . 21 . 17 2 Critical Kills 3 | . . . 3 . Critical Parts Destroyed 17 | . 1 . 16 . Critical Strikes 21 | . 1 . 20 . Smash 21 | . 1 . 20 . Melee Attacks 107 | . 11 . 96 . Impact 107 | . 11 . 96 . Slashing . | . . . . . Piercing . | . . . . . Sneak Attacks 10 | . 2 . 8 . Combat Hostiles . | . . . . . Follow-up Attacks 7 | . . . 7 . Damage Inflicted 3176 | . 874 . 2205 97 Guns 780 | . 556 . 127 97 Cannons . | . . . . . Explosions . | . . . . . Melee 2396 | . 318 . 2078 . Ramming . | . . . . . Kinetic 407 | . 253 . 57 97 Thermal 373 | . 303 . 70 . Explosive . | . . . . . Electromagnetic . | . . . . . Impact 2396 | . 318 . 2078 . Slashing . | . . . . . Piercing . | . . . . . Highest Corruption 3 | . . . 3 3 Average Corruption 3 | . . . 3 3 Corruption Purged . | . . . . . Corruption Blocked . | . . . . . Effects 19 | . . . 18 1 Message Errors 4 | . . . 4 . Matter Fused 3 | . . . 3 . Heat Flow Errors 1 | . . . 1 . Energy Discharges 4 | . . . 3 1 Data Loss (minor) 5 | . . . 5 . Misfires 1 | . . . 1 . Alerts 1 | . . . 1 . Overload Shots . | . . . . . Overflow Damage 586 | . 33 . 553 . Projectiles . | . . . . . Explosions . | . . . . . Melee 586 | . 33 . 553 . Knockbacks 7 | . 3 . 4 . Impact 6 | . 2 . 4 . Kinetic . | . . . . . Secondary 1 | . 1 . . . Self-Inflicted Damage . | . . . . . Shots . | . . . . . Rammed . | . . . . . Targets Rammed 1 | . 1 . . . Kicked . | . . . . . Crushed 1 | . 1 . . . Highest Temperature 164 | . 141 . 164 34 Average Temperature 48 | . 51 . 47 22 Received Heat Transfer 1155 | . 306 . 663 186 Siege Activations . | . . . . . Martial Activations . | . . . . . Shielding Activations . | . . . . . Robots Disrupted . | . . . . . Combat Hostiles . | . . . . . Robots Corrupted 18 | . 2 . 16 . Combat Hostiles 13 | . 1 . 12 . Parts Fried 30 | . 4 . 26 . Impact Corruptions 33 | . 3 . 30 . Robots Melted . | . . . . . Combat Hostiles . | . . . . . Parts Melted 1 | . 1 . . . Heat Transferred 825 | . 675 . 150 . Parts Sabotaged . | . . . . . Parts Stolen . | . . . . . Parts Stripped . | . . . . . Power Chain Reactions . | . . . . . Alert | -11 -10 -10 -9 -9 ------- Run | Yrd Mat Min Mat Min Maximum Alert Level 1 | . . . 1 . Low Security (%) 98 | 100 100 100 96 100 Level 1 1 | . . . 3 . Level 2 . | . . . . . Level 3 . | . . . . . Level 4 . | . . . . . Level 5 . | . . . . . High Security . | . . . . . Max Security . | . . . . . Peak Influence 219 | . 98 25 219 15 Initial 25 | . . 25 . 15 Average 36 | . 22 3 61 1 Influence Increases 1034 | . 310 . 724 . Destroy 0b10 Robot/C 620 | . 180 . 440 . Destroy 0b10 Robot/NC 55 | . 20 . 35 . Destroy Leader 194 | . 44 . 150 . Successful Hack 12 | . 5 . 7 . Destroy Structure 3 | . 1 . 2 . Lose Combat Pursuer 150 | . 60 . 90 . Influence Decreases 1034 | . 243 67 685 39 Entered New Map 66 | . . 42 . 24 Time Decay 668 | . 233 25 410 . Lost Part 132 | . 10 . 107 15 Purge Threat 168 | . . . 168 . Squads Dispatched 5 | . 4 . 1 . Investigation 4 | . 3 . 1 . Extermination . | . . . . . Reinforcement 1 | . 1 . . . Assault . | . . . . . Garrison . | . . . . . Intercept . | . . . . . Searches Triggered . | . . . . . Construction Impeded . | . . . . . Haulers Reinforced . | . . . . . Active Scanning Responses . | . . . . . Cargo Convoy Interrupts . | . . . . . Stealth | -11 -10 -10 -9 -9 --------- Run | Yrd Mat Min Mat Min Distress Signals 5 | . . . 5 . Communications Jammed . | . . . . . Distress Signals . | . . . . . Times Spotted 63 | . 17 3 40 3 Peak Tracking Total 6 | . 3 3 6 3 Tactical Retreats 6 | . 2 . 4 . Traps | -11 -10 -10 -9 -9 ------- Run | Yrd Mat Min Mat Min Traps Triggered 3 | . 2 . 1 . Indirectly . | . . . . . Trap Hack Attempts . | . . . . . Triggered . | . . . . . Disarmed . | . . . . . Reprogrammed . | . . . . . Reused . | . . . . . Traps Extracted . | . . . . . Installed . | . . . . . Triggered . | . . . . . Machines | -11 -10 -10 -9 -9 ---------- Run | Yrd Mat Min Mat Min Machines Disabled . | . . . . . Max in Single Turn . | . . . . . Machines Repaired . | . . . . . Machines Dismantled . | . . . . . Machines Sabotaged . | . . . . . Overloaded Fab Kills . | . . . . . Hacking | -11 -10 -10 -9 -9 --------- Run | Yrd Mat Min Mat Min Machines Accessed 7 | . 1 . 6 . Terminals 7 | . 1 . 6 . Fabricators . | . . . . . Repair Stations . | . . . . . Recycling Units . | . . . . . Scanalyzers . | . . . . . Garrison Access . | . . . . . Total Hacks 26 | . 5 . 21 . Successful 9 | . 1 . 8 . Failed 17 | . 4 . 13 . Catastrophic 2 | . . . 2 . Database Lockouts . | . . . . . Manual 13 | . 1 . 12 . Terminals 26 | . 5 . 21 . Fabricators . | . . . . . Repair Stations . | . . . . . Recycling Units . | . . . . . Scanalyzers . | . . . . . Garrison Access . | . . . . . Terminal Hacks 7 | . . . 7 . Prototype ID Bank 2 | . . . 2 . Branch Access Points 1 | . . . 1 . Unreport Threat 2 | . . . 2 . Hauler Manifests 1 | . . . 1 . Registered Components 1 | . . . 1 . Fabricator Hacks . | . . . . . Repair Station Hacks . | . . . . . Recycling Unit Hacks . | . . . . . Scanalyzer . | . . . . . Garrison Access Hacks . | . . . . . Unauthorized Hacks 2 | . 1 . 1 . Terminals 2 | . 1 . 1 . Botnet 2 | . 1 . 1 . Fabricators . | . . . . . Repair Stations . | . . . . . Recycling Units . | . . . . . Scanalyzers . | . . . . . Garrison Access . | . . . . . Data Cores Recovered . | . . . . . Used . | . . . . . Hacking Detections 7 | . 1 . 6 . Full Trace Events 2 | . 1 . 1 . Feedback Events . | . . . . . Feedback Blocked . | . . . . . Robot Schematics Acquired . | . . . . . Robots Built . | . . . . . Authchips . | . . . . . Time . | . . . . . Total Robot Build Rating . | . . . . . Part Schematics Acquired . | . . . . . Parts Built . | . . . . . Authchips . | . . . . . Time . | . . . . . Total Part Build Rating . | . . . . . Part Studies Acquired . | . . . . . Parts Repaired . | . . . . . Time . | . . . . . Parts Recycled . | . . . . . Recycled Matter . | . . . . . Retrieved Matter . | . . . . . Retrieved Components . | . . . . . Parts Scanalyzed . | . . . . . Part Schematics Acquired . | . . . . . Parts Damaged . | . . . . . Bothacking | -11 -10 -10 -9 -9 ------------ Run | Yrd Mat Min Mat Min Used RIF Installer . | . . . . . Robots Hacked . | . . . . . Non-combat . | . . . . . Combat . | . . . . . Robot Hacks Applied . | . . . . . Relay Couplers Released . | . . . . . Fabnet Peak Effective % . | . . . . . Robots Rewired . | . . . . . Allies Hacked . | . . . . . Hacks Repelled . | . . . . . Allies | -11 -10 -10 -9 -9 -------- Run | Yrd Mat Min Mat Min Total Allies . | . . . . . Largest Group . | . . . . . Highest-Rated Group . | . . . . . Highest-Rated Ally . | . . . . . Total Orders . | . . . . . Ally Attacks . | . . . . . Total Damage . | . . . . . Kills . | . . . . . Allies Corrupted . | . . . . . Allies Melted . | . . . . . Intel | -11 -10 -10 -9 -9 ------- Run | Yrd Mat Min Mat Min Active Infowar (turns) 1227 | . . . 1191 36 Optics 657 | . . . 621 36 Sensors 680 | . . . 680 . Robot Analysis Total . | . . . . . Derelict Logs Recovered 1 | . . 1 . . Drone Launches . | . . . . . Drone Recoveries . | . . . . . Exploration | -11 -10 -10 -9 -9 ------------- Run | Yrd Mat Min Mat Min Turns Passed 2771 | 71 1218 255 1191 36 Spaces Moved 1091 | 37 324 213 503 14 Core 2 | 2 . . . . Treads 737 | 35 297 . 391 14 Legs 352 | . 27 213 112 . Wheels . | . . . . . Hover . | . . . . . Flight . | . . . . . Fastest Speed 50 | 50 120 120 120 160 Average Speed 151 | 154 156 120 160 160 Slowest Speed 260 | 160 160 120 260 160 Overloaded Moves . | . . . . . Propulsion Burnouts . | . . . . . Robots Hopped . | . . . . . Potential Cave-ins . | . . . . . Cave-ins Triggered . | . . . . . Exploration Rate (%) 34 | 3 47 64 48 8 Regions Visited 4 Branch Regions 2 Pre-discovered Areas . | . . . . . Known Exits Taken 1 | . . . 1 . Unknown Exits Taken 3 | 1 1 1 . . Scrap Searched . | . . . . . Spaces Dug 1 | . . . 1 . Terrain Destroyed 1 | . . . 1 . Melee 1 | . . . 1 . Projectile . | . . . . . AOE . | . . . . . Terrain Rammed . | . . . . . Walls Destroyed . | . . . . . Machines Disabled . | . . . . . Actions | -11 -10 -10 -9 -9 --------- Run | Yrd Mat Min Mat Min Total 1929 | 51 934 212 712 20 Wait 611 | . 538 . 73 . Move 1087 | 36 323 212 502 14 Hop . | . . . . . Pick Up 32 | 9 9 . 14 . Fast Attach 3 | . . . 3 . Attach 26 | 6 2 . 17 1 Detach 1 | . . . 1 . Swap 7 | . 4 . 3 . Drop 2 | . 1 . 1 . Fire 59 | . 45 . 9 5 Melee 100 | . 11 . 89 . Ram . | . . . . . Kick . | . . . . . Crush 1 | . 1 . . . Escape Stasis . | . . . . . Rewire . | . . . . . Trap . | . . . . . Miscellaneous . | . . . . . Route ------- -11/Scrapyard -10/Materials (discovered 2 exits: *Mat / [*Min]) -10/Mines -9/Materials (discovered 2 exits: *Min x2) -9/Mines History --------- Turn | Location | Event 38 | -11/Scrapyard | Discovered new exit (range 16) 72 | -11/Scrapyard | Entered Materials 301 | -10/Materials | Build established: Mutant 1005 | -10/Materials | Discovered new exit (range 14) 1143 | -10/Materials | Discovered new exit (range 8) 1290 | -10/Materials | Entered Mines 1444 | -10/Mines | Found a hidden stash of uninstalled traps 1497 | -10/Mines | Learned 2 Materials zone layouts 1533 | -10/Mines | Discovered new exit (range 10) 1545 | -10/Mines | Entered Materials 1545 | -9/Materials | Evolved 2 slots: Utility x2 2213 | -9/Materials | Lost 3 parts (1p1n1u) 2423 | -9/Materials | Identified exit to Mines 2521 | -9/Materials | Core integrity fell below 50% 2593 | -9/Materials | Lost 3 parts (1p1n1w) 2736 | -9/Materials | Entered Mines 2741 | -9/Mines | Core integrity fell below 20% 2763 | -9/Mines | Met a Derelict bent on vengeance 2772 | -9/Mines | Destroyed by G-47 Trooper with Particle Gun Last Messages --------------- 02712_ R-06 Scavenger collects Imp. Ion Engine. 02715_ Y-45 Defender destroyed. 02716_ R-06 Scavenger collects Imp. Ion Engine. 02718_ Acquired 12 matter. 02719_ R-06 Scavenger collects Med. Storage Unit. 02721_ Acquired Lgt. Treads. 02725_ W-16 Scout sends out distress signal. 02727_ Acquired 11 matter. 02730_ Acquired Hvy. Assault Rifle. 02730_ C-30 ARC bursts open, deploying its payload. 02730_ S-10 Pest unfolds itself. LOCATION=MINES GOAL=ESCAPE Something is scanning the area. 02737_ Lgt. Treads destroyed. 02747_ Sml. Laser destroyed. 02764_ Critical hit (Burn: +37). 02771_ System corrupted: Energy discharge (-38). Map ----- +----------------------------------------------------+ | ????????????????????????????????????????????? | | ????????????????????????????????????????????? | | ????????????????????????????????????????????? | | ????????????????????????????????????????????? | | ????????????????????????????????????????????? | | ????????????????????????????????????????????? | | ????????????????????????????????????????????? | | ????????????????????????????????????????????? | | ????????????????????????????????????????????? | | ????????????????????????????????????????????? | | ????????????????????????????????????????????? | | ????????????????????????????????????????????? | | ????????????????????????????????????????????? | | ????????????????????????????????????????????? | | ?????????????????????????????????? ???????? | | ????????????????????????????????? ???????? | | ????????????????????????????????? ???????? | | ????????????????????????????????? ???????? | | ????????????????????????????????? #???????? | | ????????????????????????????????? #???????? | | ????????????????????????????????? #???????? | | ?????????????????????????????????# #???????? | | ?????????????????????????????????# #???????? | | ?????????????????????????????????# #???????? | | ????????????????################## #???????? | | ???????????# @ g #???????? | | ??????????# # ######### #### #???????? | | ????????????????????????????# ### #???????? | | ????????????????????????????# ##??????? | | ????????????????????????????#### ##?????? | | ???????????????????????????????## ##????? | | ????????????????????????????????## ###??? | | ?????????????????????????????????## ##?? | | ??????????????????????????????????# #?? | | ?????????????????????????????????## #?? | | ?????????????????????????????????# ##?? | | ?????????????????????????????# ##??? | | ?????????????????????????????## #####???? | | ??????????????????????????????######????????? | | ????????????????????????????????????????????? | | ????????????????????????????????????????????? | | ????????????????????????????????????????????? | | | | | | | | | | | | | | | | | +----------------------------------------------------+ Best States ------------- Heat Dissipation 38 Energy Generation 14 Energy Capacity 250 Matter Stores 300 Matter Capacity 300 Sight Range 18 Robot Scan Range 14 Terrain Scan Density 10 Armor Coverage 150 Power Shielding 33 Evasion (%) 55 Recoil Reduction 2 Item Schematics ----------------- None Robot Schematics ------------------ None Fabricated ------------ Nothing Repaired ---------- Nothing Studied --------- None Alien Tech Used ----------------- None Achievements -------------- A Problem For Future Me DATA ERROR: Steam Global Achievement% Organ Harvest Overwhelming Spot Them First There's More Where That Came From Challenges ------------ None Game ------ Seed ElectronMultitargetingArray Manual? 0 Play Time 00:16:53 Cumulative 36.6 hours Start 2025.10.23 @ 20:21:35 End 2025.10.23 @ 20:38:24 Sessions 1 Manual Loads 0 Difficulty Rogue Special Mode None Game No. 73 Rogue 73 Adventurer 0 Explorer 0 Win Type - Total 2 Types 1/0/0/1/0/0/0/0/0/0 Lore% 28 Gallery% 32 Achievement% 19 Wizard Run 0 Options --------- Layout 1 ASCII 0 Keyboard 0 Movement Mouse Keybinds 0 Fullscreen 1 Font 32/SmallcapsGlow Map View 50x35 Zoom Use 0% Tactical HUD 1 Map Filters NONE Filters NONE Steam 1 RUN: ad830bc0-a2f9-4858-8546-3a5152915534